bitfinex/quotes_BTCUSD_20251104
["timestamp","ask_amount","ask_price","bid_price","bid_amount"]
[1762238929933,0.59925087,104800.0,104790.0,0.01557]
[1762238930135,0.19087186,104790.0,104780.0,0.01557]
[1762238930984,0.21783186,104790.0,104780.0,0.01557]
[1762238932053,0.21783186,104790.0,104780.0,0.01757]
[1762238932259,3.0,104790.0,104780.0,0.04613]
[1762238932466,0.1908579,104790.0,104780.0,0.04613]
[1762238935145,0.20583552,104790.0,104780.0,0.04613]
[1762238935392,0.1908579,104790.0,104780.0,0.04613]
[1762238935611,0.1908579,104790.0,104780.0,0.04684432]
[1762238936762,0.2178179,104790.0,104780.0,0.01828432]
[1762238937186,0.75717799,104790.0,104780.0,0.00271432]
[1762238938365,0.77215599,104790.0,104780.0,0.00271432]
[1762238939131,0.77215599,104790.0,104780.0,0.03127432]
[1762238939132,0.73070599,104790.0,104780.0,0.03127432]
[1762238939329,0.014978,104790.0,104780.0,0.03127432]
[1762238939518,0.20683602,104790.0,104780.0,0.03127432]
[1762238939712,0.2058359,104790.0,104780.0,0.03127432]
[1762238940133,0.014978,104790.0,104780.0,0.03127432]
[1762238940312,0.01597812,104790.0,104780.0,0.03127432]
[1762238940981,0.20683602,104790.0,104780.0,0.03127432]
[1762238941113,0.20683602,104790.0,104780.0,0.06793432]
[1762238941114,0.014978,104790.0,104780.0,0.06793432]
[1762238941326,3.0,104790.0,104780.0,0.06793432]
[1762238941528,3.0,104800.0,104780.0,0.25880925]
[1762238941736,0.21997224,104810.0,104800.0,0.01557]
[1762238942023,0.28838224,104810.0,104800.0,0.01557]
[1762238942230,0.19083969,104800.0,104790.0,0.00047617]
[1762238942431,0.1908579,104790.0,104780.0,0.002]
[1762238942638,0.75717799,104790.0,104780.0,0.002]
[1762238942853,0.71572799,104790.0,104770.0,0.03666]
[1762238943062,0.71572799,104790.0,104770.0,0.03714612]
[1762238943476,0.52487009,104790.0,104770.0,0.03714612]
[1762238943678,0.71572868,104790.0,104770.0,0.03714612]
[1762238944040,0.71572868,104790.0,104770.0,0.03814612]
[1762238944632,0.19087612,104780.0,104770.0,0.03814612]
[1762238944829,0.19087612,104780.0,104770.0,0.00148612]
[1762238945046,0.84790132,104780.0,104770.0,0.00148612]
[1762238945701,0.34999123,104780.0,104770.0,0.00148612]
[1762238945909,0.25928612,104780.0,104770.0,0.00048612]
[1762238946126,0.75719621,104780.0,104770.0,0.00348612]
[1762238946575,0.25928612,104780.0,104770.0,0.00348612]
[1762238946785,0.75719621,104780.0,104770.0,0.00348612]
[1762238947009,0.75719621,104780.0,104770.0,0.00548612]
[1762238947010,0.25928612,104780.0,104770.0,0.00548612]
[1762238947216,0.06841,104780.0,104770.0,0.00548612]
[1762238947424,0.26028624,104780.0,104770.0,0.00548612]
[1762238947631,0.25928612,104780.0,104770.0,0.00548612]
[1762238947834,0.25928612,104780.0,104770.0,0.00643864]
[1762238948032,0.75719621,104780.0,104770.0,0.00643864]
[1762238952380,0.51920577,104780.0,104770.0,0.00643864]
[1762238952610,0.68878621,104780.0,104770.0,0.00643864]
[1762238953280,0.71574621,104780.0,104770.0,0.00643864]
[1762238954322,0.75719621,104780.0,104770.0,0.00643864]
[1762238955216,1.09719621,104780.0,104770.0,0.00643864]
[1762238955426,4.19177227,104780.0,104770.0,0.00643864]
[1762238955650,4.03707843,104780.0,104770.0,0.00643864]
[1762238955870,4.23690571,104780.0,104770.0,0.00643864]
[1762238956325,4.23690571,104780.0,104770.0,0.00343864]
[1762238956535,4.23790571,104780.0,104770.0,0.00143864]
[1762238956768,4.23890571,104780.0,104770.0,0.00143864]
[1762238957438,4.22995455,104780.0,104770.0,0.00143864]
[1762238958093,4.24492959,104780.0,104770.0,0.00143864]
[1762238958938,4.25991119,104780.0,104770.0,0.00143864]
[1762238959376,3.66742504,104780.0,104770.0,0.00143864]
[1762238959604,3.78915285,104780.0,104770.0,0.00143864]
[1762238960066,3.58329513,104780.0,104770.0,0.00143864]
[1762238960282,0.42538504,104780.0,104770.0,0.00143864]
[1762238960531,1.11417125,104780.0,104770.0,0.00143864]
[1762238960978,0.42538504,104780.0,104770.0,0.00143864]
[1762238961955,0.01697504,104780.0,104770.0,0.04996864]
[1762238962177,0.002,104780.0,104770.0,0.28237297]
[1762238963130,0.001,104780.0,104770.0,0.28237297]
[1762238963587,0.001,104780.0,104770.0,0.28537297]
[1762238963816,0.001,104780.0,104770.0,0.62537297]
[1762238964025,0.49791009,104790.0,104770.0,0.09447864]
[1762238964243,3.0,104790.0,104770.0,0.28441972]
[1762238964477,3.0,104790.0,104770.0,0.09852612]
[1762238964686,0.00100012,104780.0,104770.0,0.09852612]
[1762238964895,0.00100012,104780.0,104770.0,0.09352612]
[1762238965101,0.00100012,104780.0,104770.0,0.09652612]
[1762238965313,0.00100012,104780.0,104770.0,0.09352612]
[1762238965748,0.00100012,104780.0,104770.0,0.09052612]
[1762238965954,0.00100012,104780.0,104770.0,0.09352612]
[1762238966371,0.00100012,104780.0,104770.0,0.09552612]
[1762238966576,0.00100012,104780.0,104770.0,0.05401612]
[1762238967204,0.19187624,104780.0,104770.0,0.05401612]
[1762238967412,0.19087612,104780.0,104770.0,0.05401612]
[1762238967855,0.71591621,104780.0,104770.0,0.02539612]
[1762238968063,0.52504009,104780.0,104770.0,0.02539612]
[1762238968322,0.75777621,104780.0,104770.0,0.02539612]
[1762238968531,0.75777621,104780.0,104770.0,0.02339612]
[1762238968735,0.75777621,104780.0,104770.0,0.02039612]
[1762238969153,0.85235227,104780.0,104770.0,0.00148612]
[1762238969358,3.85235227,104780.0,104770.0,0.00148612]
[1762238969585,3.75777621,104780.0,104770.0,0.00148612]
[1762238969788,3.75777621,104780.0,104770.0,0.00243864]
[1762238970214,3.75777621,104780.0,104770.0,0.00143864]
[1762238970605,3.7737491,104780.0,104770.0,0.00143864]
[1762238971376,3.7747491,104780.0,104770.0,0.00143864]
[1762238973186,3.27683901,104780.0,104770.0,0.00143864]
[1762238973581,3.78972911,104780.0,104770.0,0.00143864]
[1762238974032,3.88430517,104780.0,104770.0,0.00143864]
[1762238974481,3.78972911,104780.0,104770.0,0.00143864]
[1762238974763,3.7747491,104780.0,104770.0,0.00143864]
[1762238976289,4.1147491,104780.0,104770.0,0.00143864]
[1762238976701,4.14345211,104780.0,104770.0,0.00143864]
[1762238977742,4.19461626,104780.0,104770.0,0.00143864]
[1762238977954,4.2981417,104780.0,104770.0,0.00143864]
[1762238978790,4.14767082,104780.0,104770.0,0.00143864]
[1762238979011,4.17684082,104780.0,104770.0,1e-08]
[1762238979231,0.19094901,104740.0,104730.0,0.021]
[1762238979451,3.7360591,104740.0,104730.0,0.00024856]
[1762238979651,3.7796391,104740.0,104730.0,0.00024856]
[1762238979926,3.7796391,104740.0,104730.0,0.00120164]
[1762238980813,3.7796391,104740.0,104730.0,0.00320164]
[1762238981033,3.87421516,104740.0,104730.0,0.00120164]
[1762238981469,4.22559547,104740.0,104730.0,0.00120164]
[1762238982197,4.13101941,104740.0,104730.0,0.00120164]
[1762238983778,4.16720169,104740.0,104730.0,0.00120164]
[1762238984625,3.6692916,104740.0,104730.0,0.00120164]
[1762238984836,4.13191941,104740.0,104730.0,0.00120164]
[1762238986507,4.13191941,104740.0,104730.0,0.00420164]
[1762238986952,0.35138031,104740.0,104730.0,0.09528164]
[1762238987162,0.0464399,104750.0,104730.0,0.09528164]
[1762238987372,0.24905553,104750.0,104730.0,0.09432856]
[1762238987622,0.22034563,104750.0,104730.0,0.09432856]
[1762238988024,0.23532947,104750.0,104730.0,0.09432856]
[1762238988256,0.27980947,104750.0,104730.0,0.09032856]
[1762238988698,0.27980947,104750.0,104730.0,0.09132856]
[1762238990000,0.08887708,104750.0,104730.0,0.09132856]
[1762238990210,0.0898772,104750.0,104730.0,0.09132856]
[1762238990357,0.28080822,104750.0,104730.0,0.09132856]
[1762238990973,0.0453972,104750.0,104730.0,0.09132856]
[1762238991432,0.0453972,104750.0,104730.0,0.08619856]
[1762238991734,0.0453972,104750.0,104740.0,0.06826]
[1762238991735,0.03271384,104750.0,104740.0,0.06826]
[1762238992136,0.01498384,104750.0,104740.0,0.06826]
[1762238992299,0.01498384,104750.0,104740.0,0.25920901]
[1762238992643,0.01498384,104750.0,104740.0,0.25992375]
[1762238993053,0.01498384,104750.0,104740.0,0.26092375]
[1762238993480,0.01498384,104750.0,104740.0,0.06997474]
[1762238993695,0.20691474,104750.0,104740.0,0.02872474]
[1762238993870,0.20591462,104750.0,104740.0,0.02872474]
[1762238994086,0.20591462,104750.0,104740.0,0.06997474]
[1762238994087,0.01498384,104750.0,104740.0,0.06997474]
[1762238994298,0.27268802,104800.0,104770.0,0.20043244]
[1762238994299,3.0,104800.0,104770.0,0.20043244]
[1762238994507,3.0,104800.0,104790.0,0.03808]
[1762238994913,0.03058053,104810.0,104800.0,0.19083969]
[1762238995133,0.01137053,104810.0,104800.0,0.02701]
[1762238995346,0.01137053,104810.0,104800.0,0.06826]
[1762238995546,0.00048585,104810.0,104800.0,0.06826]
[1762238996163,0.01192727,104810.0,104800.0,0.06826]
[1762238996378,0.00048585,104810.0,104800.0,0.07326]
[1762238996588,0.00048585,104810.0,104800.0,0.03401]
[1762238996964,0.00148597,104810.0,104800.0,0.03401]
[1762238997178,0.00148597,104810.0,104800.0,0.07526]
[1762238997578,3.0,104810.0,104800.0,0.07526]
[1762238998702,2.81861842,104810.0,104800.0,0.07526]
[1762238998912,3.0,104810.0,104800.0,0.07526]
[1762238999122,3.0,104810.0,104800.0,0.03401]
[1762238999123,0.19082148,104810.0,104800.0,0.03401]
[1762238999328,0.0192,104810.0,104800.0,0.03401]
[1762239000203,0.01967609,104810.0,104800.0,0.03401]
[1762239000439,0.01967609,104810.0,104800.0,0.07526]
[1762239000440,0.00047609,104810.0,104800.0,0.07526]
[1762239000638,0.00047609,104810.0,104800.0,0.26609969]
[1762239001047,0.26496901,104850.0,104820.0,0.20034344]
[1762239001048,0.02014,104850.0,104820.0,0.20034344]
[1762239001246,0.02690157,104850.0,104840.0,0.04889]
[1762239001474,0.02950866,104850.0,104840.0,0.04889]
[1762239001694,0.20242009,104850.0,104840.0,0.04889]
[1762239001951,0.22024289,104850.0,104840.0,0.04889]
[1762239002165,0.02949421,104850.0,104840.0,0.04889]
[1762239002375,0.01267141,104850.0,104840.0,0.04889]
[1762239002813,0.01467141,104850.0,104840.0,0.04889]
[1762239003022,0.01267141,104850.0,104840.0,0.04889]
[1762239003248,0.01467141,104850.0,104840.0,0.09014]
[1762239003454,0.20442009,104850.0,104840.0,0.04889]
[1762239003666,0.01367141,104850.0,104840.0,0.04889]
[1762239003870,0.01667141,104850.0,104840.0,0.09014]
[1762239004515,0.20742009,104850.0,104840.0,0.09014]
[1762239004731,0.23686009,104850.0,104840.0,0.02188]
[1762239004945,3.0,104840.0,104830.0,0.06313]
[1762239005150,0.01667141,104850.0,104830.0,0.09014]
[1762239005354,0.01667141,104850.0,104840.0,0.02701]
[1762239005562,0.01667141,104850.0,104840.0,0.06826]
[1762239005787,0.0051457,104850.0,104840.0,0.06826]
[1762239005986,0.0031457,104850.0,104840.0,0.06826]
[1762239006391,0.19289438,104850.0,104840.0,0.06826]
[1762239006600,0.0001457,104850.0,104840.0,0.06826]
[1762239007078,0.0001457,104850.0,104840.0,0.06926]
[1762239007285,0.19089438,104850.0,104840.0,0.06926]
[1762239007719,0.0001457,104850.0,104840.0,0.07326]
[1762239009572,0.0001457,104850.0,104840.0,0.26402688]
[1762239009793,0.0001457,104850.0,104840.0,0.60402688]
[1762239010012,0.0004,104870.0,104850.0,0.19074804]
[1762239010227,0.0004,104870.0,104860.0,0.04889]
[1762239010449,0.0004,104870.0,104860.0,0.09014]
[1762239010865,0.20263904,104870.0,104860.0,0.09014]
[1762239011082,0.01192673,104870.0,104860.0,0.09014]
[1762239011300,0.91125285,104870.0,104860.0,0.02188]
[1762239011528,0.19073643,104860.0,104850.0,0.02188]
[1762239012064,0.19073643,104860.0,104850.0,0.09014]
[1762239012319,0.87982173,104870.0,104850.0,0.09014]
[1762239012563,0.19073049,104860.0,104850.0,0.09014]
[1762239012785,0.0004,104870.0,104860.0,0.06826]
[1762239013029,0.19111231,104870.0,104860.0,0.06826]
[1762239013493,0.86121612,104870.0,104860.0,0.06826]
[1762239013940,0.86021612,104870.0,104860.0,0.06826]
[1762239014184,0.91110342,104870.0,104850.0,0.02288]
[1762239014479,0.19073049,104860.0,104850.0,0.06413]
[1762239014686,0.19073049,104860.0,104850.0,0.06313]
[1762239014905,0.19073049,104860.0,104850.0,0.09051]
[1762239014906,0.19053959,104860.0,104850.0,0.09051]
[1762239015126,0.95034851,104860.0,104850.0,0.04926]
[1762239015338,0.97796851,104860.0,104850.0,0.02188]
[1762239015750,0.97796851,104860.0,104850.0,0.02288]
[1762239016372,0.95053941,104860.0,104850.0,0.05026]
[1762239016574,0.2814356,104860.0,104850.0,0.05026]
[1762239016789,0.2814356,104860.0,104850.0,0.05226]
[1762239017674,0.28262514,104860.0,104850.0,0.05226]
[1762239018163,0.00118954,104860.0,104850.0,0.09405]
[1762239018603,0.00118954,104860.0,104850.0,0.28479868]
[1762239018820,0.00118954,104860.0,104850.0,0.09405]
[1762239019230,0.00118954,104860.0,104850.0,0.30387354]
[1762239019477,0.00118954,104860.0,104850.0,0.09405]
[1762239019922,0.00118954,104860.0,104850.0,0.28479868]
[1762239021752,0.00118954,104860.0,104850.0,0.09405]
[1762239022920,0.00118954,104860.0,104850.0,0.28479868]
[1762239023126,0.00118954,104860.0,104850.0,0.37550379]
[1762239024620,0.00118954,104860.0,104850.0,0.18475511]
[1762239025274,0.00118954,104860.0,104850.0,0.39457865]
[1762239025491,0.00118954,104860.0,104850.0,0.37550379]
[1762239025705,0.00118954,104860.0,104850.0,0.09405]
[1762239026802,0.00118954,104860.0,104850.0,0.39457865]
[1762239027016,0.00118954,104860.0,104850.0,0.37550379]
[1762239027654,0.00118954,104860.0,104850.0,0.71550379]
[1762239028084,0.0004,104870.0,104860.0,0.53073049]
[1762239028302,0.0004,104870.0,104860.0,0.59990049]
[1762239029180,0.0004,104870.0,104860.0,0.60390049]
[1762239029396,0.0004,104870.0,104860.0,0.60590049]
[1762239029890,0.0004,104880.0,104860.0,0.60590049]
[1762239030106,0.0004,104880.0,104870.0,0.39092865]
[1762239030320,0.0004,104880.0,104870.0,0.37185742]
[1762239031113,0.0004,104880.0,104870.0,0.18114511]
[1762239031276,0.0004,104880.0,104870.0,0.38643194]
[1762239031477,0.0004,104880.0,104870.0,0.37285742]
[1762239031681,0.0004,104880.0,104870.0,0.18214511]
[1762239031899,0.0004,104880.0,104870.0,0.20221634]
[1762239032102,0.0004,104880.0,104870.0,0.39292865]
[1762239032327,0.0004,104880.0,104870.0,0.37185742]
[1762239032548,0.0004,104880.0,104870.0,0.37485742]
[1762239032735,0.0004,104880.0,104870.0,0.37685742]
[1762239033159,0.0004,104880.0,104870.0,0.71685742]
[1762239033384,0.0004,104890.0,104880.0,0.19069412]
[1762239033656,0.00054573,104890.0,104880.0,0.26067412]
[1762239033846,0.01536577,104900.0,104890.0,0.19067594]
[1762239034008,0.01536577,104900.0,104890.0,0.37182105]
[1762239034566,0.0004,104900.0,104890.0,0.18114511]
[1762239034765,0.0004,104900.0,104890.0,0.37182105]
[1762239035176,0.0004,104900.0,104890.0,0.37382105]
[1762239035347,0.0004,104900.0,104890.0,0.37482105]
[1762239036988,0.0004,104900.0,104890.0,0.09344]
[1762239037389,0.0004,104900.0,104890.0,0.28411594]
[1762239037675,0.0004,104900.0,104890.0,0.09344]
[1762239037861,0.0004,104900.0,104890.0,0.28411594]
[1762239038198,0.0004,104910.0,104890.0,0.41100333]
[1762239038486,0.0004,104910.0,104900.0,0.26063776]
[1762239040711,0.0004,104910.0,104900.0,0.06998]
[1762239041062,0.00158869,104910.0,104900.0,0.07298]
[1762239041296,0.00158869,104910.0,104900.0,0.26363776]
[1762239041491,0.00158869,104910.0,104900.0,0.07298]
[1762239041892,0.00158869,104910.0,104900.0,0.26363776]
[1762239042109,0.00158869,104910.0,104900.0,0.07298]
[1762239042767,0.00158869,104910.0,104900.0,0.26363776]
[1762239044758,0.0254,104920.0,104910.0,0.19063959]
[1762239044960,3.19058509,104940.0,104930.0,0.01545]
[1762239045169,3.21972352,104940.0,104930.0,0.04214]
[1762239045397,3.02913843,104940.0,104930.0,0.08217]
[1762239045941,3.21972352,104940.0,104930.0,0.08217]
[1762239046110,3.05904736,104940.0,104930.0,0.08217]
[1762239046711,3.24963245,104940.0,104930.0,0.08217]
[1762239046905,3.05904736,104940.0,104930.0,0.08217]
[1762239047118,3.06204736,104940.0,104930.0,0.08217]
[1762239047317,3.05109714,104940.0,104930.0,0.08217]
[1762239047532,3.06228319,104940.0,104930.0,0.08217]
[1762239047976,3.05828319,104940.0,104930.0,0.08217]
[1762239048421,0.05528319,104940.0,104930.0,0.08217]
[1762239048614,0.05728319,104940.0,104930.0,0.08217]
[1762239048914,0.04232448,104940.0,104930.0,0.08217]
[1762239049142,0.23290957,104940.0,104930.0,0.08217]
[1762239049361,0.04432448,104940.0,104930.0,0.08217]
[1762239049814,0.04032448,104940.0,104930.0,0.08217]
[1762239050461,0.04103732,104940.0,104930.0,0.08217]
[1762239051032,0.23162241,104940.0,104930.0,0.08217]
[1762239051259,0.90072622,104940.0,104930.0,0.08217]
[1762239051922,3.23162241,104940.0,104930.0,0.08217]
[1762239052244,3.04103732,104940.0,104930.0,0.08217]
[1762239053051,0.04103732,104940.0,104930.0,0.08217]
[1762239053664,0.00119851,104940.0,104930.0,0.29183357]
[1762239053874,0.00119851,104940.0,104930.0,0.08217]
[1762239054107,0.00119851,104940.0,104930.0,0.10123032]
[1762239054303,0.00119851,104940.0,104930.0,0.08217]
[1762239054563,0.19060325,104930.0,104920.0,0.01545]
[1762239054719,0.19063959,104910.0,104900.0,0.04003]
[1762239054936,0.95893851,104910.0,104890.0,0.02046]
[1762239055304,3.95893851,104910.0,104900.0,0.06672]
[1762239055536,3.2813447,104910.0,104900.0,0.06672]
[1762239055759,3.8597434,104910.0,104900.0,0.06672]
[1762239056196,3.0,104910.0,104900.0,0.06672]
[1762239056696,0.88838721,104920.0,104900.0,0.06672]
[1762239056899,0.88838721,104920.0,104910.0,0.04761]
[1762239057111,0.6977653,104920.0,104910.0,0.08764]
[1762239057282,0.88838672,104920.0,104910.0,0.08764]
[1762239057503,0.88838672,104920.0,104910.0,0.04761]
[1762239057749,0.02866149,104920.0,104910.0,0.08764]
[1762239057925,0.02866149,104920.0,104890.0,0.11116511]
[1762239057926,1.0168429,104920.0,104900.0,0.04003]
[1762239058124,0.1193666,104920.0,104910.0,0.04761]
[1762239058354,0.02866149,104920.0,104910.0,0.04761]
[1762239058471,0.02966149,104920.0,104910.0,0.08764]
[1762239059084,0.02866149,104920.0,104910.0,0.08764]
[1762239059302,0.02866149,104920.0,104910.0,0.08864]
[1762239059522,0.02966149,104920.0,104910.0,0.08864]
[1762239060558,0.74596889,104920.0,104910.0,0.08864]
[1762239062389,0.76092859,104920.0,104910.0,0.08864]
[1762239064050,0.74596889,104920.0,104910.0,0.08864]
[1762239064234,0.001,104920.0,104910.0,0.08864]
[1762239064407,0.74596889,104920.0,104910.0,0.08864]
[1762239064829,0.001,104920.0,104910.0,0.08864]
[1762239065007,0.74596889,104920.0,104910.0,0.27927959]
[1762239065209,0.001,104920.0,104910.0,0.27927959]
[1762239065410,0.74596889,104920.0,104910.0,0.27927959]
[1762239065610,0.74596889,104920.0,104910.0,0.08864]
[1762239065904,4.82632609,104920.0,104910.0,0.001]
[1762239066108,4.56134544,104920.0,104910.0,0.001]
[1762239066259,4.78062671,104920.0,104910.0,0.001]
[1762239066470,5.12062671,104920.0,104910.0,0.001]
[1762239066847,3.58773893,104920.0,104910.0,0.001]
[1762239067032,5.07767671,104920.0,104910.0,0.001]
[1762239067228,5.12062671,104920.0,104910.0,0.001]
[1762239067634,5.1355885,104920.0,104910.0,0.001]
[1762239068298,5.23016456,104920.0,104910.0,0.001]
[1762239068924,5.2451188,104920.0,104910.0,0.001]
[1762239069759,3.75518102,104920.0,104910.0,0.001]
[1762239069967,5.15054274,104920.0,104910.0,0.001]
[1762239070177,3.05981354,104920.0,104910.0,0.08864]
[1762239070380,0.04485175,104920.0,104910.0,0.08864]
[1762239070587,0.00123766,104920.0,104910.0,0.29834354]
[1762239070792,0.00123766,104920.0,104910.0,0.27927959]
[1762239070999,0.00123766,104920.0,104910.0,0.08864]
[1762239071201,0.00123766,104920.0,104910.0,0.29834354]
[1762239071405,0.00123766,104920.0,104910.0,0.27927959]
[1762239071861,0.74620655,104920.0,104910.0,0.08864]
[1762239073037,0.74620655,104920.0,104910.0,0.10770395]
[1762239073296,0.74620655,104920.0,104910.0,0.08864]
[1762239073500,0.74620655,104920.0,104910.0,0.06463]
[1762239073714,0.74620655,104920.0,104910.0,0.08555]
[1762239077820,0.00123766,104920.0,104910.0,0.27618959]
[1762239078047,0.00123766,104920.0,104910.0,0.3668947]
[1762239079208,0.00023766,104920.0,104910.0,0.3668947]
[1762239079656,0.00023766,104920.0,104910.0,0.3678947]
[1762239081229,0.00023766,104920.0,104910.0,0.3708947]
[1762239081466,0.01514644,104940.0,104930.0,0.02619]
[1762239081693,0.01514644,104940.0,104930.0,0.08757032]
[1762239081694,0.76011533,104940.0,104930.0,0.08757032]
[1762239081922,0.76011533,104940.0,104930.0,0.06851]
[1762239082641,0.76011533,104940.0,104930.0,0.02619]
[1762239082849,0.76011533,104940.0,104930.0,0.06851]
[1762239083156,0.76111533,104940.0,104930.0,0.06851]
[1762239084430,0.76211533,104940.0,104930.0,0.06851]
[1762239085905,0.77344965,104940.0,104930.0,0.06851]
[1762239086533,0.76211533,104940.0,104930.0,0.06851]
[1762239087206,0.76259053,104940.0,104930.0,0.06851]
[1762239088932,0.86683546,104940.0,104910.0,0.01737]
[1762239089165,0.86683546,104940.0,104900.0,0.00999999]
[1762239089166,1.79017199,104920.0,104900.0,0.04006]
[1762239089426,0.74496889,104910.0,104900.0,0.04006]
[1762239089651,0.93560848,104910.0,104900.0,0.04006]
[1762239090124,0.93560848,104910.0,104900.0,0.0679]
[1762239091566,0.95056888,104910.0,104900.0,0.0679]
[1762239091801,0.95056888,104910.0,104900.0,0.0689]
[1762239092231,0.93560848,104910.0,104900.0,0.0689]
[1762239093085,0.74496889,104910.0,104900.0,0.0689]
[1762239093301,0.93560848,104910.0,104900.0,0.0689]
[1762239093516,0.74496889,104910.0,104900.0,0.0689]
[1762239094164,1.0738628,104920.0,104900.0,0.0689]
[1762239094391,0.93560848,104910.0,104900.0,0.0689]
[1762239094613,0.74496889,104910.0,104900.0,0.0689]
[1762239094833,0.93560848,104910.0,104900.0,0.0689]
[1762239095047,0.93560848,104910.0,104900.0,0.0679]
[1762239095474,0.75992924,104910.0,104900.0,0.0679]
[1762239095708,0.95056883,104910.0,104900.0,0.0679]
[1762239097036,0.75992924,104910.0,104900.0,0.0689]
[1762239097293,0.95056883,104910.0,104900.0,0.0689]
[1762239099058,0.97794883,104910.0,104900.0,0.02884]
[1762239099278,4.46241489,104910.0,104900.0,0.001]
[1762239099497,3.19065776,104900.0,104890.0,0.00111427]
[1762239099729,4.93465671,104900.0,104890.0,0.00111427]
[1762239099965,4.93465671,104900.0,104890.0,1e-08]
[1762239099966,5.28349211,104900.0,104890.0,1e-08]
[1762239100154,5.2924262,104900.0,104890.0,1e-08]
[1762239100413,5.35470168,104900.0,104890.0,1e-08]
[1762239100636,5.36968946,104900.0,104890.0,1e-08]
[1762239100858,3.8886771,104900.0,104890.0,1e-08]
[1762239101083,3.87867711,104900.0,104890.0,1e-08]
[1762239101339,3.8886771,104900.0,104890.0,1e-08]
[1762239101565,3.82563212,104900.0,104890.0,1e-08]
[1762239101782,3.8217067,104900.0,104890.0,1e-08]
[1762239101993,3.8147067,104900.0,104890.0,1e-08]
[1762239102444,3.8237067,104900.0,104890.0,1e-08]
[1762239103039,3.93289451,104900.0,104890.0,1e-08]
[1762239103343,3.92289451,104900.0,104890.0,1e-08]
[1762239103884,3.90289453,104900.0,104890.0,1e-08]
[1762239104246,3.73531294,104900.0,104890.0,1e-08]
[1762239104810,3.74531293,104900.0,104890.0,1e-08]
[1762239105012,3.73531294,104900.0,104890.0,1e-08]
[1762239105431,3.74531293,104900.0,104890.0,1e-08]
[1762239105633,3.75429507,104900.0,104890.0,1e-08]
[1762239105841,3.84887113,104900.0,104890.0,1e-08]
[1762239106064,3.85887112,104900.0,104890.0,1e-08]
[1762239107206,3.93069672,104900.0,104890.0,1e-08]
[1762239107779,3.945658,104900.0,104890.0,1e-08]
[1762239107990,3.93069672,104900.0,104890.0,1e-08]
[1762239108201,3.92171458,104900.0,104890.0,1e-08]
[1762239110379,3.95039229,104900.0,104890.0,1e-08]
[1762239110964,3.9403923,104900.0,104890.0,1e-08]
[1762239111165,3.96535355,104900.0,104890.0,1e-08]
[1762239113229,3.94535357,104900.0,104890.0,1e-08]
[1762239113659,3.9403923,104900.0,104890.0,1e-08]
[1762239113864,3.95039229,104900.0,104890.0,1e-08]
[1762239114071,3.9594362,104900.0,104890.0,1e-08]
[1762239114269,3.94943621,104900.0,104890.0,1e-08]
[1762239114478,3.9594362,104900.0,104890.0,1e-08]
[1762239116626,3.97439715,104900.0,104890.0,1e-08]
[1762239116787,3.94603959,104900.0,104890.0,1e-08]
[1762239117570,3.93699568,104900.0,104890.0,1e-08]
[1762239117777,3.92699569,104900.0,104890.0,1e-08]
[1762239117977,3.93699568,104900.0,104890.0,1e-08]
[1762239118642,3.92699569,104900.0,104890.0,1e-08]
[1762239118852,3.93699568,104900.0,104890.0,1e-08]
[1762239119457,3.94590058,104900.0,104890.0,1e-08]
[1762239119781,3.93699568,104900.0,104890.0,1e-08]
[1762239120181,3.88416008,104900.0,104890.0,1e-08]
[1762239120390,3.8830663,104900.0,104890.0,1e-08]
[1762239120593,3.89306629,104900.0,104890.0,1e-08]
[1762239123031,3.98046244,104900.0,104890.0,1e-08]
[1762239123624,3.97046245,104900.0,104890.0,1e-08]
[1762239123984,3.96550149,104900.0,104890.0,1e-08]
[1762239124449,3.87307521,104900.0,104890.0,1e-08]
[1762239124874,3.87416899,104900.0,104890.0,1e-08]
[1762239125100,3.88308529,104900.0,104890.0,1e-08]
[1762239125553,3.89308528,104900.0,104890.0,1e-08]
[1762239127553,3.89309622,104900.0,104890.0,1e-08]
[1762239127998,3.96418526,104900.0,104890.0,1e-08]
[1762239129998,3.97914583,104900.0,104890.0,1e-08]
[1762239130234,3.96914584,104900.0,104890.0,1e-08]
[1762239130408,3.97914583,104900.0,104890.0,1e-08]
[1762239131584,3.8980568,104900.0,104890.0,1e-08]
[1762239131811,3.88805681,104900.0,104890.0,1e-08]
[1762239132441,3.8980568,104900.0,104890.0,1e-08]
[1762239133945,3.88805681,104900.0,104890.0,1e-08]
[1762239134151,3.8980568,104900.0,104890.0,1e-08]
[1762239134335,3.88805681,104900.0,104890.0,1e-08]
[1762239134541,3.8980568,104900.0,104890.0,1e-08]
[1762239134739,3.88805681,104900.0,104890.0,1e-08]
[1762239135485,3.8980568,104900.0,104890.0,1e-08]
[1762239135663,3.88805681,104900.0,104890.0,1e-08]
[1762239136066,3.8980568,104900.0,104890.0,1e-08]
[1762239136484,3.88805681,104900.0,104890.0,1e-08]
[1762239136889,3.8980568,104900.0,104890.0,1e-08]
[1762239137495,3.88309623,104900.0,104890.0,1e-08]
[1762239137958,3.87309624,104900.0,104890.0,1e-08]
[1762239138795,3.92200761,104900.0,104890.0,1e-08]
[1762239139067,3.9430365,104900.0,104890.0,1e-08]
[1762239139267,3.91906665,104900.0,104890.0,1e-08]
[1762239139711,3.92306665,104900.0,104890.0,1e-08]
[1762239139913,0.19078508,104830.0,104820.0,0.01907]
[1762239140166,0.19078508,104830.0,104820.0,0.01921573]
[1762239140381,1.26658119,104830.0,104820.0,0.00014573]
[1762239140582,1.38562663,104830.0,104820.0,0.00014573]
[1762239140802,1.29526762,104830.0,104820.0,0.00014573]
[1762239141756,1.31023293,104830.0,104820.0,0.00014573]
[1762239141958,0.30714682,104830.0,104820.0,0.00014573]
[1762239142167,1.31123293,104830.0,104820.0,0.01014573]
[1762239142574,1.32197295,104830.0,104820.0,0.01014573]
[1762239142782,0.06488176,104830.0,104820.0,0.03583573]
[1762239142952,0.05539176,104830.0,104820.0,0.03583573]
[1762239143162,0.05539176,104830.0,104820.0,0.07556573]
[1762239143163,0.001,104830.0,104820.0,0.07556573]
[1762239145528,0.01179852,104830.0,104820.0,0.07723122]
[1762239145759,0.001,104830.0,104820.0,0.07723122]
[1762239145955,0.001,104830.0,104820.0,0.28711482]
[1762239146155,0.001,104830.0,104820.0,0.2680345]
[1762239146826,0.001,104830.0,104820.0,0.07723122]
[1762239146975,0.001,104830.0,104820.0,0.2680345]
[1762239147326,0.04711678,104850.0,104820.0,0.2580345]
[1762239147560,0.19076688,104840.0,104830.0,0.0588]
[1762239147746,1.2845581,104840.0,104830.0,0.0578]